bitfinex/quotes_BTCUSD_20240911
["timestamp","ask_amount","ask_price","bid_price","bid_amount"]
[1726059901186,0.0031657,57078.0,57077.0,0.08948854]
[1726059901415,0.0031657,57078.0,57077.0,0.18948854]
[1726059901877,0.0031657,57078.0,57077.0,0.18748854]
[1726059902371,0.0021657,57078.0,57077.0,0.14348854]
[1726059902614,0.0021657,57078.0,57076.0,0.05948854]
[1726059902836,0.0021657,57078.0,57077.0,0.006]
[1726059903082,0.0029807,57078.0,57077.0,0.005]
[1726059903307,0.0029807,57078.0,57077.0,0.011]
[1726059903308,0.0039807,57078.0,57077.0,0.011]
[1726059903560,0.0039807,57078.0,57077.0,0.14628854]
[1726059903972,0.0039807,57078.0,57077.0,0.14928854]
[1726059903975,0.0119807,57078.0,57077.0,0.14928854]
[1726059904195,0.0029807,57078.0,57077.0,0.13528854]
[1726059904678,0.0029807,57078.0,57077.0,0.23528854]
[1726059904929,0.0029807,57078.0,57077.0,0.23728854]
[1726059905165,0.0029807,57078.0,57077.0,0.41322872]
[1726059905387,0.0029807,57078.0,57077.0,0.47812872]
[1726059905863,0.0029807,57078.0,57077.0,0.48312872]
[1726059906368,0.0029807,57078.0,57077.0,0.47912872]
[1726059906661,0.0029807,57078.0,57077.0,0.12948854]
[1726059906912,0.0049807,57078.0,57077.0,0.125]
[1726059907135,0.0049807,57078.0,57077.0,0.17348854]
[1726059907136,0.0039807,57078.0,57077.0,0.17348854]
[1726059907392,0.0039807,57078.0,57077.0,0.41923279]
[1726059907393,0.0029807,57078.0,57077.0,0.41923279]
[1726059907889,0.0049807,57078.0,57077.0,0.44372872]
[1726059908131,0.0039807,57078.0,57077.0,1.92972872]
[1726059908634,0.0039807,57078.0,57077.0,0.014]
[1726059909120,0.0029807,57078.0,57075.0,0.03]
[1726059909369,0.0029807,57078.0,57071.0,0.27483005]
[1726059909370,0.0039807,57078.0,57077.0,0.014]
[1726059909616,0.0049807,57078.0,57077.0,0.028]
[1726059909854,0.0039807,57078.0,57077.0,0.014]
[1726059910096,0.0029807,57078.0,57072.0,0.13]
[1726059910331,0.0029807,57078.0,57077.0,0.004]
[1726059911596,0.0029807,57078.0,57071.0,0.05948854]
[1726059911597,0.0029807,57078.0,57071.0,0.33431859]
[1726059911825,0.0029807,57078.0,57072.0,0.1]
[1726059912061,0.0029807,57078.0,57064.0,0.05948854]
[1726059912062,0.0792,57076.0,57064.0,0.05948854]
[1726059912307,0.17892088,57078.0,57069.0,0.05948854]
[1726059912308,0.0029807,57078.0,57069.0,0.05948854]
[1726059912559,0.00657707,57078.0,57069.0,0.05948854]
[1726059912813,0.00657707,57078.0,57067.0,0.06148854]
[1726059913309,0.00657707,57078.0,57072.0,0.004]
[1726059913581,0.0029807,57078.0,57077.0,0.41371859]
[1726059913838,0.0029807,57078.0,57077.0,0.51371859]
[1726059913839,0.0129807,57078.0,57077.0,0.51371859]
[1726059914104,0.0029807,57078.0,57077.0,2.01371859]
[1726059914347,0.0029807,57078.0,57077.0,2.01571859]
[1726059914600,0.0189807,57078.0,57077.0,2.01571859]
[1726059914835,0.0189807,57078.0,57077.0,0.51571859]
[1726059915069,0.0129807,57078.0,57077.0,0.69165877]
[1726059915311,0.18829701,57110.0,57078.0,0.02948854]
[1726059915539,0.0663,57104.0,57094.0,0.0782]
[1726059915773,0.0663,57104.0,57099.0,0.002]
[1726059916033,0.0628,57104.0,57099.0,0.032]
[1726059916289,3.5,57111.0,57110.0,0.03]
[1726059916616,3.3917,57111.0,57110.0,0.51662872]
[1726059916836,2.69249693,57111.0,57110.0,2.29145877]
[1726059917491,2.69249693,57111.0,57110.0,2.01662872]
[1726059917740,2.69249693,57111.0,57110.0,1.95002872]
[1726059918484,2.69249693,57111.0,57110.0,2.22485877]
[1726059918700,2.69249693,57111.0,57110.0,1.95002872]
[1726059918939,2.69249693,57111.0,57110.0,2.22485877]
[1726059919646,2.69249693,57111.0,57110.0,2.23885877]
[1726059919867,2.69249693,57111.0,57110.0,2.22485877]
[1726059920319,2.69249693,57111.0,57110.0,2.23885877]
[1726059920801,2.69249693,57111.0,57110.0,2.33775877]
[1726059921052,2.69249693,57111.0,57110.0,2.38419009]
[1726059921272,2.69249693,57111.0,57110.0,2.30075877]
[1726059921709,2.69249693,57111.0,57110.0,2.32375877]
[1726059922224,1.61107699,57111.0,57110.0,2.47419009]
[1726059922457,1.51297184,57111.0,57110.0,3.29592479]
[1726059922906,1.51297184,57111.0,57110.0,3.28192479]
[1726059923136,0.29091058,57111.0,57110.0,3.29592479]
[1726059923376,0.0021657,57124.0,57118.0,0.18348854]
[1726059923587,0.000816,57127.0,57126.0,0.36631859]
[1726059923829,0.000816,57127.0,57126.0,0.56525877]
[1726059924040,0.000816,57127.0,57126.0,0.36742872]
[1726059924278,0.000816,57127.0,57126.0,0.26742872]
[1726059924505,0.000816,57127.0,57125.0,0.03]
[1726059924725,0.0799,57126.0,57124.0,0.03]
[1726059924948,0.0799,57126.0,57125.0,0.03]
[1726059925382,0.0799,57126.0,57125.0,0.08948854]
[1726059925856,0.0799,57126.0,57125.0,0.03]
[1726059926768,0.0819,57126.0,57125.0,0.03]
[1726059927023,0.0799,57126.0,57125.0,0.03]
[1726059927263,0.0799,57126.0,57125.0,0.037]
[1726059927981,0.0799,57126.0,57125.0,0.007]
[1726059927982,0.1455,57126.0,57125.0,0.007]
[1726059928203,0.1455,57126.0,57125.0,0.016]
[1726059928444,0.32503655,57126.0,57125.0,0.016]
[1726059928669,0.1455,57126.0,57125.0,0.016]
[1726059929171,0.000816,57127.0,57126.0,0.06]
[1726059929408,0.000816,57127.0,57126.0,0.26892918]
[1726059929659,0.000816,57127.0,57126.0,0.36542872]
[1726059930571,0.000816,57127.0,57126.0,0.37142872]
[1726059930805,0.000816,57127.0,57126.0,0.36542872]
[1726059931061,0.142716,57127.0,57126.0,0.144]
[1726059931287,0.142716,57127.0,57126.0,0.258]
[1726059931523,0.142716,57127.0,57126.0,0.33]
[1726059931760,0.142716,57127.0,57126.0,0.2]
[1726059931761,0.15736845,57127.0,57126.0,0.2]
[1726059931987,0.31865618,57127.0,57126.0,0.225]
[1726059932220,0.142716,57127.0,57126.0,0.225]
[1726059932466,0.142716,57127.0,57126.0,0.212]
[1726059933133,0.142716,57127.0,57126.0,0.2]
[1726059933636,0.15700882,57127.0,57126.0,0.201]
[1726059933866,0.143716,57127.0,57126.0,0.201]
[1726059934090,0.143716,57127.0,57126.0,0.206]
[1726059934357,0.142716,57127.0,57126.0,0.2]
[1726059934815,0.143716,57127.0,57126.0,0.2]
[1726059935283,0.142716,57127.0,57126.0,0.2]
[1726059935752,0.142716,57127.0,57126.0,0.203]
[1726059936430,0.142716,57127.0,57126.0,0.204]
[1726059936644,0.142716,57127.0,57126.0,0.203]
[1726059936867,0.143716,57127.0,57126.0,0.203]
[1726059937082,0.143716,57127.0,57126.0,0.2]
[1726059937314,0.142716,57127.0,57126.0,0.2]
[1726059937551,0.001816,57127.0,57126.0,0.75025877]
[1726059937766,0.001816,57127.0,57126.0,0.87325877]
[1726059937987,0.001816,57127.0,57126.0,2.42947467]
[1726059938200,0.001816,57127.0,57126.0,2.4406105]
[1726059938418,0.001816,57127.0,57126.0,2.50567467]
[1726059938636,0.001816,57127.0,57126.0,2.06842872]
[1726059938869,0.000816,57127.0,57126.0,2.06742872]
[1726059939504,0.000816,57127.0,57126.0,2.40547467]
[1726059940006,0.001816,57127.0,57126.0,2.41348567]
[1726059940220,0.000816,57127.0,57126.0,2.41248567]
[1726059940432,0.000816,57127.0,57126.0,2.44048567]
[1726059940644,0.000816,57127.0,57126.0,2.46348567]
[1726059940863,0.000816,57127.0,57126.0,2.44948567]
[1726059941076,0.000816,57127.0,57126.0,2.43548567]
[1726059941302,0.000816,57127.0,57126.0,2.44948567]
[1726059941519,0.000816,57127.0,57126.0,2.46348567]
[1726059942368,0.00021215,57130.0,57129.0,0.09148854]
[1726059942584,0.00021215,57130.0,57129.0,0.29392834]
[1726059942819,0.00021215,57130.0,57129.0,0.39392834]
[1726059943079,0.00021215,57130.0,57129.0,0.43976753]
[1726059943339,0.00021215,57130.0,57129.0,1.89392834]
[1726059943798,0.00021215,57130.0,57129.0,1.90792834]
[1726059944012,0.00021215,57130.0,57129.0,1.92192834]
[1726059944253,0.00021215,57130.0,57129.0,1.91842872]
[1726059944464,0.00021215,57130.0,57129.0,1.96426791]
[1726059944683,0.00021215,57130.0,57129.0,1.93626791]
[1726059945192,0.00021215,57130.0,57129.0,1.90442872]
[1726059945437,0.0018676,57133.0,57132.0,0.12148854]
[1726059945647,0.0001,57139.0,57138.0,0.002]
[1726059945862,0.0001,57139.0,57138.0,0.31676695]
[1726059946081,0.0001,57139.0,57138.0,0.33976695]
[1726059946301,0.0001,57139.0,57138.0,1.89042872]
[1726059946985,0.0001,57159.0,57145.0,0.002]
[1726059947221,0.0001,57159.0,57145.0,0.26392758]
[1726059947427,0.0001,57159.0,57145.0,0.43976677]
[1726059947687,0.0001,57159.0,57145.0,0.39392758]
[1726059947885,0.0001,57159.0,57154.0,0.42753449]
[1726059948110,0.0001,57159.0,57154.0,0.70347467]
[1726059948342,0.0001,57159.0,57158.0,0.05948854]
[1726059948575,0.0001,57159.0,57158.0,1.75842872]
[1726059948800,0.0001,57159.0,57158.0,1.86542872]
[1726059949293,0.0001,57159.0,57158.0,1.88842872]
[1726059949747,0.0001,57159.0,57158.0,1.86742872]
[1726059950679,0.0664,57159.0,57158.0,0.014]
[1726059950902,0.0001,57159.0,57158.0,0.014]
[1726059951136,0.0001,57159.0,57158.0,0.046]
[1726059951359,0.1446,57159.0,57158.0,0.046]
[1726059951599,0.0001,57159.0,57158.0,0.28142872]
[1726059951844,0.0021657,57169.0,57158.0,0.35932872]
[1726059952103,0.0021657,57169.0,57168.0,0.26542872]
[1726059952332,0.0021657,57169.0,57168.0,0.28842872]
[1726059952571,0.0021657,57169.0,57168.0,0.36542872]
[1726059952858,0.0021657,57169.0,57168.0,1.86542872]
[1726059953061,0.0021657,57169.0,57168.0,1.88842872]
[1726059953508,0.0021657,57169.0,57168.0,1.89042872]
[1726059953996,0.0021657,57169.0,57168.0,1.88142872]
[1726059954216,0.0021657,57169.0,57168.0,1.89042872]
[1726059954652,0.0021657,57169.0,57168.0,1.88142872]
[1726059955578,0.0013657,57169.0,57168.0,1.89542872]
[1726059955850,0.0021837,57169.0,57168.0,1.91842872]
[1726059956558,0.00623993,57170.0,57168.0,1.89542872]
[1726059956823,0.0002,57182.0,57181.0,0.17118854]
[1726059957053,0.0754,57182.0,57181.0,0.36742872]
[1726059957290,0.1387,57182.0,57181.0,0.36742872]
[1726059957534,0.0002,57182.0,57181.0,0.36742872]
[1726059958236,0.0002,57182.0,57181.0,0.3945937]
[1726059958493,0.0002,57182.0,57181.0,0.3785937]
[1726059958723,0.0002,57182.0,57181.0,0.19148854]
[1726059958978,0.1453,57182.0,57181.0,0.016]
[1726059959249,0.1453,57182.0,57181.0,0.046]
[1726059959515,0.1453,57182.0,57181.0,0.10548854]
[1726059959780,0.1453,57182.0,57181.0,0.28142872]
[1726059960033,0.1453,57182.0,57181.0,0.29542872]
[1726059960290,0.1453,57182.0,57181.0,0.28142872]
[1726059960556,0.0002,57182.0,57181.0,0.38142872]
[1726059960791,0.00795324,57182.0,57181.0,0.38142872]
[1726059961066,0.0002,57182.0,57181.0,0.38942872]
[1726059961293,0.0002,57182.0,57181.0,0.36742872]
[1726059961574,0.0002,57182.0,57181.0,0.38142872]
[1726059961821,0.0781,57182.0,57181.0,0.38142872]
[1726059962077,0.1436,57182.0,57181.0,0.17]
[1726059962314,0.1436,57182.0,57181.0,0.09948854]
[1726059962568,0.15254213,57182.0,57181.0,0.36742872]
[1726059962804,0.00914213,57182.0,57181.0,0.36742872]
[1726059963056,0.00914213,57182.0,57181.0,0.38142872]
[1726059963563,0.00914213,57182.0,57181.0,0.41142872]
[1726059963842,0.0021657,57192.0,57188.0,0.032]
[1726059964081,0.0021657,57192.0,57188.0,0.26742872]
[1726059964350,0.0021657,57192.0,57188.0,1.86742872]
[1726059965525,0.0021657,57192.0,57188.0,1.88142872]
[1726059965769,0.0021657,57192.0,57188.0,1.90642872]
[1726059966007,0.0021657,57192.0,57188.0,2.24447467]
[1726059966540,0.0047168,57198.0,57197.0,0.06148854]
[1726059966798,0.0047168,57198.0,57197.0,0.26742872]
[1726059967061,0.1493168,57198.0,57197.0,0.36742872]
[1726059967318,0.1493168,57198.0,57197.0,1.86742872]
[1726059967779,0.1493168,57198.0,57197.0,0.36742872]
[1726059968010,0.1493168,57198.0,57197.0,0.38142872]
[1726059969272,0.0047168,57198.0,57197.0,0.39542872]
[1726059969499,0.0047168,57198.0,57197.0,1.89542872]
[1726059969759,0.0001,57199.0,57198.0,0.06148854]
[1726059970016,0.00041876,57210.0,57198.0,0.06148854]
[1726059970017,0.00041876,57210.0,57199.0,0.40153449]
[1726059970266,0.00041876,57210.0,57209.0,0.42953449]
[1726059970540,0.00013,57214.0,57210.0,0.05948854]
[1726059970824,0.01777527,57228.0,57218.0,0.09148854]
[1726059970825,0.0001,57219.0,57218.0,0.09148854]
[1726059971050,2.87913805,57222.0,57221.0,0.004]
[1726059971276,2.86069665,57222.0,57221.0,0.26042872]
[1726059971515,2.86069665,57222.0,57221.0,0.36742872]
[1726059971774,2.86069665,57222.0,57221.0,1.86742872]
[1726059972005,2.85176725,57222.0,57221.0,1.89242872]
[1726059972232,2.85176725,57222.0,57221.0,2.56013771]
[1726059972467,2.85176725,57222.0,57221.0,2.42543771]
[1726059972722,2.99526725,57222.0,57221.0,2.42543771]
[1726059973001,2.99526725,57222.0,57221.0,0.36742872]
[1726059973232,2.99526725,57222.0,57221.0,0.032]
[1726059973509,2.99526725,57222.0,57215.0,0.05948854]
[1726059973510,2.99526725,57222.0,57217.0,0.002]
[1726059973788,2.99526725,57222.0,57193.0,0.0797]
[1726059973789,0.14471146,57219.0,57195.0,0.002]
[1726059974056,0.70220899,57208.0,57197.0,0.52782518]
[1726059974295,0.00051146,57213.0,57197.0,0.52782518]
[1726059974296,0.70220899,57198.0,57197.0,0.52782518]
[1726059974532,0.1442,57198.0,57197.0,0.55782518]
[1726059974763,0.1442,57198.0,57197.0,0.03]
[1726059974996,0.1442,57198.0,57197.0,0.002]
[1726059975476,0.1442,57198.0,57197.0,0.003]
[1726059975832,0.1448,57197.0,57188.0,0.03]
[1726059975858,0.1448,57196.0,57188.0,0.03]
[1726059976097,0.55800899,57189.0,57183.0,0.002]
[1726059976309,0.1401,57187.0,57178.0,0.002]
[1726059976531,0.0772,57185.0,57178.0,0.032]
[1726059976982,0.0772,57185.0,57164.0,0.52782518]
[1726059976983,0.0803,57183.0,57181.0,0.03]
[1726059977214,0.0803,57183.0,57182.0,0.09148854]
[1726059977479,0.0803,57183.0,57182.0,0.06148854]
[1726059977719,0.0803,57183.0,57182.0,0.032]
[1726059977947,0.33904655,57183.0,57178.0,0.002]
[1726059978186,0.0639,57180.0,57175.0,0.03]
[1726059978455,0.17594018,57182.0,57174.0,0.002]
[1726059978456,0.08059637,57179.0,57174.0,0.032]
[1726059978710,0.08059637,57179.0,57169.0,0.002]
[1726059978711,0.0812,57177.0,57169.0,0.002]
[1726059978950,0.1424,57174.0,57167.0,0.032]
[1726059979172,0.0612,57171.0,57167.0,0.032]
[1726059979649,0.17594018,57176.0,57166.0,0.03]
[1726059979650,0.0825,57169.0,57166.0,0.03]
[1726059979894,0.0825,57167.0,57166.0,0.03]
[1726059980133,0.06399637,57168.0,57161.0,0.002]
[1726059980134,0.0604,57166.0,57161.0,0.002]
[1726059980366,0.08609637,57165.0,57164.0,0.002]
[1726059981100,0.0825,57165.0,57164.0,0.002]
[1726059981345,0.08609637,57165.0,57164.0,0.002]
[1726059981847,0.15099637,57165.0,57164.0,0.008]
[1726059982092,0.1474,57165.0,57164.0,0.008]
[1726059982802,0.1474,57165.0,57164.0,0.006]
[1726059983287,0.1474,57165.0,57158.0,0.0021657]
[1726059983288,0.1431,57164.0,57158.0,0.0021657]
[1726059983561,0.1444,57158.0,57142.0,0.03]
[1726059983756,0.70240899,57149.0,57140.0,0.032]
[1726059983992,0.94859007,57149.0,57140.0,0.002]
[1726059984454,0.1444,57148.0,57135.0,0.00237639]
[1726059984844,0.1444,57136.0,57135.0,0.00237639]
[1726059985101,0.1444,57136.0,57135.0,0.03237639]
[1726059985346,0.1444,57136.0,57135.0,0.00237639]
[1726059985829,0.15884,57136.0,57135.0,0.00237639]
[1726059986096,0.33478018,57136.0,57135.0,0.00237639]
[1726059986340,0.89638554,57136.0,57135.0,0.00237639]
[1726059986823,0.32034018,57136.0,57135.0,0.00537639]
[1726059987067,0.32034018,57136.0,57135.0,0.00637639]
[1726059987317,0.32034018,57136.0,57129.0,0.001634]
[1726059987319,0.1407,57135.0,57129.0,0.001634]
[1726059987559,0.73754554,57136.0,57126.0,0.13955038]
[1726059987560,0.17594018,57130.0,57126.0,0.13955038]
[1726059987796,0.1439,57127.0,57126.0,0.13955038]
[1726059988036,0.41163225,57127.0,57126.0,0.13955038]
[1726059988272,0.32343655,57127.0,57126.0,0.13955038]
[1726059988520,0.32343655,57127.0,57126.0,0.07295038]
[1726059988982,0.31984018,57127.0,57126.0,0.07295038]
[1726059989210,0.32343655,57127.0,57126.0,0.07295038]
[1726059989437,0.32343655,57127.0,57126.0,0.00635038]
[1726059989671,0.41163225,57127.0,57125.0,0.0066941]
[1726059989942,0.31984018,57126.0,57125.0,0.0066941]
[1726059990170,0.32343655,57126.0,57125.0,0.0066941]
[1726059990400,0.55800899,57122.0,57121.0,0.001634]
[1726059990625,0.80924917,57122.0,57121.0,0.001634]
[1726059990851,0.95042523,57122.0,57121.0,0.001634]
[1726059991135,0.95042523,57122.0,57112.0,0.0021657]
[1726059991136,0.55800899,57113.0,57112.0,0.0021657]
[1726059991357,0.87384917,57113.0,57112.0,0.0021657]
[1726059991582,0.87384917,57113.0,57109.0,0.001634]
[1726059991583,0.80924917,57113.0,57109.0,0.001634]
[1726059991826,0.07581146,57110.0,57109.0,0.001634]
[1726059992066,0.63600899,57103.0,57100.0,3.0]
[1726059992308,0.55800899,57101.0,57100.0,3.0]
[1726059992548,0.55800899,57101.0,57100.0,2.83527393]
[1726059992549,0.81194917,57101.0,57100.0,2.83527393]
[1726059992791,0.87464917,57101.0,57100.0,2.83527393]
[1726059993748,0.88864917,57101.0,57100.0,2.83527393]
[1726059993967,0.87464917,57101.0,57100.0,2.83527393]
[1726059994189,0.88864917,57101.0,57100.0,2.83627393]
[1726059994416,0.90264917,57101.0,57100.0,2.83627393]
[1726059994673,0.33064018,57101.0,57100.0,2.83627393]
[1726059995180,0.1687,57101.0,57100.0,2.83627393]
[1726059995398,0.90264917,57101.0,57100.0,2.83627393]
[1726059995622,0.33064018,57101.0,57100.0,2.83527393]
[1726059995849,0.014,57101.0,57100.0,2.83527393]
[1726059996075,0.014,57101.0,57100.0,2.92776247]
[1726059996076,0.026,57101.0,57100.0,2.92776247]
[1726059996313,0.012,57101.0,57100.0,3.02776247]
[1726059996532,0.0775,57113.0,57109.0,0.002]
[1726059996765,0.08109637,57113.0,57109.0,0.002]
[1726059996994,0.0775,57113.0,57110.0,0.03]
[1726059997216,0.0775,57113.0,57109.0,0.002]
[1726059997464,0.0775,57113.0,57110.0,0.03]
[1726059997696,0.0775,57113.0,57112.0,0.002]
[1726059997920,0.0775,57113.0,57112.0,0.032]
[1726059997921,0.001,57113.0,57112.0,0.032]
[1726059998362,0.001,57113.0,57112.0,0.64949753]
[1726059998584,0.001,57113.0,57112.0,0.19148854]
[1726059998814,0.001,57113.0,57112.0,0.132]
[1726059999063,0.0842,57113.0,57112.0,0.01703983]
[1726059999270,0.0842,57113.0,57107.0,0.002]
[1726059999487,0.00359637,57112.0,57109.0,0.014]
[1726059999708,0.00359637,57112.0,57111.0,0.002]
[1726060000372,0.0655,57119.0,57113.0,0.002]
[1726060000373,0.08399637,57118.0,57113.0,0.002]
[1726060000609,0.08399637,57118.0,57109.0,0.002]
[1726060000610,0.00359637,57113.0,57109.0,0.002]
[1726060000827,0.17594018,57112.0,57107.0,0.002]
[1726060001050,0.00359637,57111.0,57107.0,0.03]
[1726060001341,0.0804,57109.0,57100.0,2.83727393]
[1726060001551,0.17953655,57108.0,57102.0,0.002]
[1726060001771,0.17953655,57108.0,57100.0,2.83527393]
[1726060001772,0.17953655,57108.0,57101.0,0.002]
[1726060001989,0.17953655,57108.0,57100.0,2.83527393]
[1726060002212,0.0658,57106.0,57100.0,2.83527393]
[1726060002465,0.17953655,57105.0,57100.0,2.83527393]
[1726060002690,0.17594018,57105.0,57100.0,2.83527393]
[1726060002945,0.00359637,57108.0,57107.0,0.002]
[1726060003175,0.0804,57109.0,57104.0,0.032]
[1726060003430,0.0771,57118.0,57110.0,0.03]
[1726060003663,0.00359637,57116.0,57111.0,0.002]
[1726060004182,0.00359637,57116.0,57112.0,0.002]
[1726060004398,0.00359637,57116.0,57111.0,0.002]
[1726060005306,0.17594018,57115.0,57111.0,0.002]
[1726060005556,0.00359637,57114.0,57107.0,0.002]
[1726060005811,0.19389383,57113.0,57104.0,0.002]
[1726060006048,0.19389383,57113.0,57111.0,0.002]
[1726060006049,0.08189637,57112.0,57111.0,0.002]
[1726060006296,0.001,57116.0,57113.0,0.002]
[1726060006579,0.002,57116.0,57113.0,0.002]
[1726060006862,0.002,57116.0,57115.0,0.002]
[1726060006863,0.001,57116.0,57115.0,0.002]
[1726060007095,0.001,57116.0,57112.0,0.03]
[1726060007096,0.0751,57118.0,57117.0,0.002]
[1726060007329,0.174979,57150.0,57117.0,0.002]
[1726060007330,0.1351,57130.0,57117.0,0.002]
[1726060007547,0.17594018,57129.0,57123.0,0.002]
[1726060007884,0.17594018,57129.0,57114.0,0.03]
[1726060007885,0.17594018,57129.0,57121.0,0.002]
[1726060008332,0.00051146,57138.0,57133.0,0.002]
[1726060008333,0.0751,57138.0,57133.0,0.002]
[1726060008336,0.0937,57159.0,57128.0,0.03]
[1726060008337,0.06,57158.0,57147.0,0.002]
[1726060008598,0.52782518,57152.0,57147.0,0.032]
[1726060008830,0.0757,57162.0,57156.0,0.03]
[1726060009075,0.0757,57162.0,57159.0,0.002]
[1726060009335,0.0757,57167.0,57159.0,0.002]
[1726060009625,0.00359637,57166.0,57159.0,0.032]
[1726060009851,0.0768,57173.0,57159.0,0.09148854]
[1726060010103,0.00359637,57166.0,57159.0,0.032]
[1726060010397,0.0160581,57160.0,57159.0,0.033]
[1726060010602,0.0090581,57160.0,57159.0,0.032]
[1726060010860,0.0050581,57160.0,57158.0,0.03]
[1726060011131,0.0060581,57160.0,57159.0,0.009]
[1726060011365,0.26419828,57160.0,57159.0,0.014]
[1726060011590,0.85174684,57160.0,57159.0,0.014]
[1726060011838,0.29061811,57160.0,57159.0,0.014]
[1726060012062,0.29421448,57160.0,57159.0,0.014]
[1726060012297,0.35571448,57160.0,57159.0,0.014]
[1726060012527,0.35471448,57160.0,57147.0,0.032]
[1726060012764,0.00359637,57159.0,57148.0,0.03]
[1726060013003,0.00359637,57159.0,57150.0,0.03]
[1726060013252,0.00359637,57159.0,57158.0,0.002]
[1726060014019,0.76694834,57159.0,57145.0,0.002]
[1726060014284,0.17594018,57158.0,57147.0,0.03]
[1726060014510,0.17594018,57158.0,57143.0,0.002]
[1726060014511,0.00359637,57157.0,57143.0,0.002]
[1726060014770,0.17594018,57156.0,57144.0,0.002]
[1726060014998,0.00359637,57155.0,57144.0,0.002]
[1726060015234,0.17594018,57154.0,57143.0,0.03]
[1726060015491,0.00359637,57153.0,57143.0,0.03]
[1726060015719,0.17594018,57152.0,57145.0,0.002]
[1726060015970,0.00359637,57151.0,57143.0,0.032]
[1726060016202,0.17594018,57150.0,57142.0,0.002]
[1726060016437,0.17594018,57144.0,57126.0,0.032]
[1726060016687,0.17594018,57144.0,57120.0,0.05948854]
[1726060016688,0.56013232,57138.0,57131.0,0.52782518]
[1726060016941,0.56013232,57138.0,57128.0,0.03]
[1726060016942,0.17953655,57137.0,57128.0,0.03]
[1726060017168,0.17953655,57137.0,57120.0,0.05948854]
[1726060017169,0.15596689,57136.0,57127.0,0.03]
[1726060017407,0.17953655,57135.0,57128.0,0.03]
[1726060017648,0.17594018,57135.0,57129.0,0.002]
[1726060018123,0.09280031,57134.0,57128.0,0.03]
[1726060018358,0.09280031,57134.0,57126.0,0.001]
[1726060018359,0.62353232,57132.0,57126.0,0.001]
[1726060018598,0.56013232,57129.0,57126.0,0.001]
[1726060018835,0.17953655,57128.0,57126.0,0.001]
[1726060019068,0.70109444,57127.0,57126.0,0.001]
[1726060019327,0.95253462,57127.0,57110.0,0.00021078]
[1726060019549,0.70109444,57121.0,57110.0,0.00021078]
[1726060019777,0.17953655,57120.0,57110.0,0.00021078]
[1726060020273,0.0755,57114.0,57110.0,0.00021078]
[1726060020506,0.17953655,57113.0,57110.0,0.00021078]
[1726060021012,0.17594018,57113.0,57110.0,0.00021078]
[1726060021269,0.00359637,57112.0,57110.0,0.00021078]
[1726060021505,0.17594018,57111.0,57110.0,0.00021078]
[1726060022297,0.25244018,57111.0,57110.0,0.00021078]
[1726060022547,0.25244018,57111.0,57100.0,2.83690993]
[1726060022548,0.077,57108.0,57100.0,2.83690993]
[1726060022789,0.17594018,57107.0,57100.0,3.001636]
[1726060023041,0.70109444,57105.0,57100.0,3.001636]
[1726060023304,0.17953655,57104.0,57100.0,3.001636]
[1726060023850,0.17594018,57101.0,57100.0,3.001636]
[1726060024094,0.25194018,57101.0,57100.0,3.001636]
[1726060024365,0.25245164,57101.0,57100.0,3.001636]
[1726060024610,0.25245164,57101.0,57100.0,2.47982176]
[1726060024611,0.25604801,57101.0,57100.0,2.47982176]
[1726060024879,0.99487183,57101.0,57100.0,2.47982176]
[1726060025088,0.9984682,57101.0,57100.0,2.47982176]
[1726060025323,0.9984682,57101.0,57100.0,2.3236581]
[1726060025559,1.0855682,57101.0,57100.0,2.10691586]
[1726060025804,1.05897183,57101.0,57100.0,2.10691586]
[1726060026294,1.07297183,57101.0,57100.0,2.10691586]
[1726060027012,1.08697183,57101.0,57100.0,2.10691586]
[1726060028135,1.08676115,57101.0,57100.0,2.10691586]
[1726060030236,0.00051146,57090.0,57089.0,0.0021657]
[1726060030472,0.00051146,57090.0,57074.0,0.001636]
[1726060030473,0.00051146,57075.0,57074.0,0.001636]
[1726060030704,0.00051146,57075.0,57074.0,0.0078536]
[1726060030705,0.95304608,57075.0,57074.0,0.0078536]
[1726060030933,0.25144018,57075.0,57074.0,0.0078536]
[1726060031171,0.18435164,57075.0,57074.0,0.0078536]
[1726060031396,0.24565164,57075.0,57074.0,0.0078536]
[1726060032093,0.24514018,57075.0,57074.0,0.0078536]
[1726060032583,0.18743655,57075.0,57074.0,0.0078536]
[1726060032821,0.10834018,57075.0,57074.0,0.0078536]
[1726060033047,0.12234018,57075.0,57074.0,0.0078536]
[1726060033269,0.00359637,57082.0,57074.0,0.0078536]
[1726060033509,0.17594018,57082.0,57074.0,0.0078536]
[1726060033733,0.014,57075.0,57074.0,0.0078536]
[1726060033986,0.17594018,57075.0,57074.0,0.0078536]
[1726060034445,0.26663655,57075.0,57074.0,0.0078536]
[1726060034668,0.26963655,57075.0,57074.0,0.0078536]
[1726060035365,0.31903655,57075.0,57074.0,0.0078536]
[1726060035601,0.33303655,57075.0,57074.0,0.0078536]
[1726060035833,0.53175601,57075.0,57074.0,0.0078536]
[1726060036319,0.00051146,57068.0,57067.0,0.001636]
[1726060036554,0.00051146,57068.0,57055.0,0.001636]
[1726060036555,0.70109444,57060.0,57055.0,0.001636]
[1726060036777,0.24285164,57060.0,57055.0,0.001636]
[1726060037018,0.00051146,57057.0,57055.0,0.001636]
[1726060037309,0.25763655,57056.0,57055.0,0.001636]
[1726060039132,0.25814801,57056.0,57055.0,0.001636]
[1726060039591,0.28114801,57056.0,57055.0,0.001636]
[1726060039846,0.25763655,57056.0,57055.0,0.001636]
[1726060040088,0.27163655,57056.0,57055.0,0.001636]
[1726060040321,0.17594018,57056.0,57055.0,0.001636]
[1726060040778,0.20294018,57056.0,57055.0,0.001636]
[1726060041013,0.18894018,57056.0,57055.0,0.001636]
[1726060041258,0.20294018,57056.0,57055.0,0.001636]
[1726060041494,0.28025164,57056.0,57055.0,0.001636]
[1726060041753,0.27625164,57056.0,57055.0,0.001636]
[1726060041973,0.45151764,57056.0,57055.0,0.001636]
[1726060042197,0.27625164,57056.0,57055.0,0.001636]
[1726060042911,0.81604964,57056.0,57055.0,0.001636]
[1726060043140,0.7016059,57053.0,57043.0,0.0021657]